bitfinex/quotes_SOLUSD_20250216
["timestamp","ask_amount","ask_price","bid_price","bid_amount"]
[1739728782154,0.043,190.04,190.02,8.43680859]
[1739728783553,0.043,190.04,190.03,8.43680859]
[1739728788653,0.043,190.04,190.03,13.69910859]
[1739728791360,0.043,190.04,190.03,27.11095712]
[1739728795640,0.043,190.04,190.03,13.69910859]
[1739728799836,0.043,190.04,190.03,8.43680859]
[1739728800038,0.043,190.04,190.03,27.11095712]
[1739728807870,0.043,190.04,190.03,13.69910859]
[1739728808971,0.043,190.04,190.03,8.43680859]
[1739728809863,0.043,190.04,190.03,13.69910859]
[1739728816975,0.043,190.04,190.03,8.43680859]
[1739728817673,0.043,190.04,190.03,13.69910859]
[1739728818772,0.043,190.04,190.03,8.43680859]
[1739728819667,0.043,190.04,190.03,13.69910859]
[1739728823550,0.043,190.04,190.03,27.11095712]
[1739728825574,0.043,190.04,190.03,13.69910859]
[1739728828213,81.469,190.08,190.06,8.43680859]
[1739728828869,81.469,190.08,190.04,8.43680859]
[1739728829192,81.469,190.08,190.06,8.43680859]
[1739728829859,81.469,190.08,190.07,8.43680859]
[1739728830979,81.469,190.08,190.05,8.43680859]
[1739728831187,81.469,190.08,190.06,8.43680859]
[1739728832289,81.469,190.13,190.07,8.43680859]
[1739728832489,81.469,190.12,190.07,8.43680859]
[1739728832797,81.469,190.12,190.06,8.43680859]
[1739728833295,81.469,190.12,190.07,8.43680859]
[1739728834183,86.7288,190.12,190.06,8.43680859]
[1739728834389,0.063,190.08,190.05,8.43680859]
[1739728834594,0.063,190.08,190.03,5.2623]
[1739728834595,81.469,190.07,190.04,8.43680859]
[1739728837300,81.469,190.07,190.05,8.43680859]
[1739728837608,81.469,190.07,190.06,8.43680859]
[1739728839578,0.063,190.08,190.06,13.69820859]
[1739728839780,0.063,190.08,190.07,8.43680859]
[1739728840609,0.063,190.08,190.07,21.84865712]
[1739728840793,0.063,190.08,190.07,27.10985712]
[1739728841116,0.063,190.08,190.07,27.8987935]
[1739728841882,0.063,190.08,190.07,27.10985712]
[1739728842991,0.063,190.08,190.07,13.69800859]
[1739728843233,0.063,190.08,190.07,8.43680859]
[1739728846605,0.063,190.08,190.07,13.69800859]
[1739728851707,0.063,190.08,190.07,8.43680859]
[1739728855418,0.063,190.08,190.06,8.46680859]
[1739728856108,0.063,190.08,190.06,0.03]
[1739728857713,81.469,190.07,190.06,0.03]
[1739728861424,81.469,190.07,190.06,8.46680859]
[1739728864242,81.469,190.07,190.06,0.03]
[1739728864427,8.43680859,190.07,190.06,0.03]
[1739728865839,13.69800859,190.07,190.06,0.03]
[1739728867607,13.69800859,190.07,189.99,0.03]
[1739728867917,5.2623,190.03,189.99,0.03]
[1739728868731,82.3,190.02,189.99,0.03]
[1739728869420,82.3,190.02,189.99,8.46680859]
[1739728869732,82.3,190.02,189.99,0.03]
[1739728870407,82.3,190.01,189.99,0.03]
[1739728870614,8.43680859,190.0,189.99,0.03]
[1739728871923,21.6589,189.98,189.97,0.0001]
[1739728872120,48.77125712,189.98,189.97,0.0001]
[1739728874138,35.35940859,189.98,189.97,0.0001]
[1739728880784,48.77125712,189.98,189.97,0.0001]
[1739728882423,48.83425712,189.98,189.97,0.0001]
[1739728885444,55.85795712,189.98,189.97,0.0001]
[1739728885640,14.41184853,189.97,189.87,83.37]
[1739728885834,20.0,189.92,189.87,83.37]
[1739728886036,8.43680859,189.9,189.87,83.37]
[1739728886243,20.0,189.92,189.87,0.03]
[1739728886244,13.70300859,189.89,189.87,0.03]
[1739728886433,8.43680859,189.88,189.87,0.03]
[1739728888237,13.70320859,189.88,189.87,0.03]
[1739728888546,13.70320859,189.88,189.83,0.03]
[1739728888547,20.0,189.84,189.83,0.03]
[1739728888742,28.43680859,189.84,189.83,0.03]
[1739728890171,20.0,189.85,189.83,0.03]
[1739728890368,8.43680859,189.84,189.83,0.03]
[1739728892267,13.70430859,189.84,189.83,0.03]
[1739728895942,5.3297,189.87,189.83,0.03]
[1739728896967,0.063,189.87,189.83,0.03]
[1739728897273,0.063,189.87,189.83,8.46680859]
[1739728897444,0.063,189.87,189.85,8.43680859]
[1739728897644,0.063,189.87,189.86,8.43680859]
[1739728898337,0.063,189.87,189.85,8.43680859]
[1739728898664,0.063,189.87,189.85,11.98421893]
[1739728900472,0.063,189.87,189.86,11.98421893]
[1739728900661,0.063,189.87,189.86,13.59621893]
[1739728901468,0.063,189.87,189.86,18.86321893]
[1739728903367,0.063,189.87,189.86,13.59621893]
[1739728904358,0.063,189.87,189.86,18.86321893]
[1739728904870,0.063,189.87,189.86,13.59621893]
[1739728905275,0.063,189.87,189.86,18.86321893]
[1739728910182,0.063,189.87,189.86,32.27506746]
[1739728912163,0.063,189.87,189.86,33.27506746]
[1739728912560,0.063,189.87,189.86,34.06485423]
[1739728913591,81.363,189.95,189.86,34.06485423]
[1739728913886,81.363,189.95,189.92,11.98421893]
[1739728914787,81.363,189.95,189.93,11.98421893]
[1739728915187,81.363,189.95,189.91,11.98421893]
[1739728915395,86.6276,189.95,189.9,11.98421893]
[1739728915569,81.363,189.95,189.9,11.98421893]
[1739728916190,81.363,189.95,189.89,17.25011893]
[1739728917291,81.363,189.95,189.91,11.98421893]
[1739728917592,81.363,189.95,189.94,11.98421893]
[1739728917968,81.363,189.95,189.93,11.98421893]
[1739728918783,81.363,189.95,189.94,11.98421893]
[1739728919782,0.063,189.98,189.94,25.39606746]
[1739728919988,0.063,189.98,189.97,11.98421893]
[1739728920491,0.063,189.98,189.95,11.98421893]
[1739728920661,0.063,189.98,189.95,7.66197787]
[1739728921090,0.063,189.98,189.96,7.66197787]
[1739728923101,0.063,189.98,189.94,7.66197787]
[1739728923274,0.063,189.98,189.93,7.66197787]
[1739728923889,81.363,189.97,189.92,7.66197787]
[1739728924369,81.363,189.97,189.94,7.66197787]
[1739728924585,81.363,189.97,189.94,11.97325977]
[1739728924789,81.363,189.97,189.95,11.97325977]
[1739728925174,81.363,189.97,189.96,11.97325977]
[1739728927573,81.363,189.97,189.96,17.23745977]
[1739728928801,0.063,189.98,189.96,17.23745977]
[1739728929101,0.063,189.98,189.97,11.97325977]
[1739728931701,0.063,189.98,189.97,17.23715977]
[1739728936109,0.063,189.98,189.97,30.6490083]
[1739728939709,0.063,189.98,189.97,17.23715977]
[1739728942623,0.063,189.98,189.97,30.6490083]
[1739728943520,0.063,189.98,189.97,17.23715977]
[1739728943725,0.063,189.98,189.97,11.97325977]
[1739728943929,0.063,189.98,189.96,17.23745977]
[1739728944626,0.063,189.98,189.96,7.66102994]
[1739728945013,0.063,189.98,189.95,7.69102994]
[1739728945213,0.063,189.98,189.95,0.03]
[1739728945627,81.363,189.97,189.95,0.03]
[1739728945832,7.66102994,189.96,189.95,0.03]
[1739728947410,12.92522994,189.96,189.95,0.03]
[1739728948631,17.24504187,189.96,189.95,0.03]
[1739728949305,18.74824187,189.96,189.95,0.03]
[1739728951044,20.0,189.93,189.86,0.03]
[1739728951215,11.98084187,189.9,189.86,0.03]
[1739728951416,5.2662,189.89,189.86,0.03]
[1739728951718,17.24704187,189.89,189.86,0.03]
[1739728953438,11.98084187,189.9,189.86,0.03]
[1739728954544,17.24694187,189.9,189.86,0.03]
[1739728955882,82.3,189.89,189.86,0.03]
[1739728956047,87.5662,189.89,189.86,0.03]
[1739728956337,99.54704187,189.89,189.86,0.03]
[1739728957141,11.98084187,189.88,189.86,0.03]
[1739728957320,11.98084187,189.87,189.86,0.03]
[1739728958219,17.24754187,189.87,189.86,0.03]
[1739728965154,30.6593904,189.87,189.86,0.03]
[1739728968656,26.35445393,189.87,189.86,0.03]
[1739728970246,12.9426054,189.87,189.86,0.03]
[1739728980972,13.41184853,189.88,189.86,0.03]
[1739728980973,5.2665,189.88,189.86,0.03]
[1739728983472,12.9424054,189.88,189.86,0.03]
[1739728983670,7.6759054,189.87,189.86,0.03]
[1739728984389,12.9426054,189.87,189.86,0.03]
[1739728988695,5.2667,189.87,189.86,0.03]
[1739728989064,5.2664,189.89,189.86,0.03]
[1739728989265,5.2659,189.9,189.86,0.03]
[1739728989569,5.2657,189.91,189.86,0.03]
[1739728989978,7.6759054,189.91,189.86,0.03]
[1739728990170,7.6759054,189.89,189.86,0.03]
[1739728990365,7.6759054,189.9,189.86,0.03]
[1739728991391,7.6759054,189.89,189.86,0.03]
[1739728991773,5.2662,189.89,189.86,0.03]
[1739728993414,26.57384853,189.94,189.86,7.7059054]
[1739728993415,5.2658,189.91,189.86,7.7059054]
[1739728993598,5.2653,189.93,189.88,7.6759054]
[1739728994505,12.9412054,189.93,189.86,7.7059054]
[1739728997296,5.2656,189.91,189.86,7.7059054]
[1739728998804,12.9415054,189.91,189.86,0.03]
[1739728999102,7.6759054,189.89,189.86,0.03]
[1739728999302,87.5664,189.88,189.86,0.03]
[1739729003509,87.5667,189.87,189.86,0.03]
[1739729009212,5.2667,189.87,189.86,0.03]
[1739729011117,5.2664,189.88,189.86,0.03]
[1739729012384,5.2662,189.89,189.86,0.03]
[1739729013402,7.6759054,189.92,189.86,7.7059054]
[1739729014002,7.6759054,189.91,189.86,0.03]
[1739729014203,7.6759054,189.9,189.86,0.03]
[1739729014511,7.6759054,189.89,189.86,0.03]
[1739729015216,5.2664,189.88,189.86,0.03]
[1739729015597,12.9423054,189.88,189.86,0.03]
[1739729016317,7.6759054,189.87,189.86,0.03]
[1739729017193,12.9426054,189.87,189.86,0.03]
[1739729017417,5.2667,189.87,189.86,0.03]
[1739729017804,12.9426054,189.87,189.86,0.03]
[1739729020713,5.2667,189.87,189.86,0.03]
[1739729021314,7.6759054,189.87,189.86,0.03]
[1739729021516,7.6759054,189.88,189.86,0.03]
[1739729023102,7.6759054,189.89,189.86,0.03]
[1739729023306,12.9418054,189.9,189.86,0.03]
[1739729023506,12.9419054,189.9,189.86,0.03]
[1739729023715,7.6759054,189.91,189.86,0.03]
[1739729024020,7.6759054,189.92,189.86,7.7059054]
[1739729024321,12.9409054,189.93,189.87,7.6759054]
[1739729025221,82.3,189.92,189.87,7.6759054]
[1739729025720,82.3,189.92,189.88,7.6759054]
[1739729025899,82.3,189.92,189.9,7.6759054]
[1739729026423,82.3,189.92,189.89,7.6759054]
[1739729028218,82.3,189.92,189.88,7.6759054]
[1739729029723,87.5654,189.92,189.88,7.6759054]
[1739729029926,87.5654,189.92,189.87,7.6759054]
[1739729030633,87.5654,189.92,189.88,7.6759054]
[1739729031235,87.5654,189.92,189.89,7.6759054]
[1739729031533,87.5654,189.92,189.89,7.7059054]
[1739729033527,86.87076318,189.92,189.89,7.7059054]
[1739729034827,86.87076318,189.92,189.89,0.03]
[1739729041932,81.60536318,189.91,189.89,0.03]
[1739729042832,5.2659,189.9,189.89,0.03]
[1739729043610,81.60536318,189.91,189.89,0.03]
[1739729043922,86.87106318,189.91,189.89,0.03]
[1739729047833,81.60536318,189.9,189.89,0.03]
[1739729048946,86.87126318,189.9,189.89,0.03]
[1739729050028,12.9418054,189.9,189.89,0.03]
[1739729052638,20.0,189.87,189.86,0.03]
[1739729052845,27.6759054,189.87,189.86,0.03]
[1739729054062,32.9426054,189.87,189.86,0.03]
[1739729057445,59.52135393,189.87,189.83,0.03]
[1739729057637,13.41184853,189.86,189.83,0.03]
[1739729057845,59.52135393,189.87,189.83,0.03]
[1739729057846,7.6759054,189.84,189.83,0.03]
[1739729058053,21.08775393,189.84,189.82,0.03]
[1739729058345,20.0,189.81,189.8,0.03]
[1739729058538,27.6759054,189.81,189.8,0.03]
[1739729059451,32.9443054,189.81,189.8,0.03]
[1739729073162,25.2684,189.81,189.8,0.03]
[1739729073956,7.6759054,189.84,189.8,0.03]
[1739729074662,5.2678,189.83,189.8,0.03]
[1739729074862,7.6759054,189.82,189.8,0.03]
[1739729075065,7.6759054,189.81,189.8,0.03]
[1739729076561,21.08775393,189.81,189.8,0.03]
[1739729076765,26.35615393,189.81,189.8,0.03]
[1739729078076,12.9443054,189.81,189.8,0.03]
[1739729084453,5.2684,189.81,189.8,0.03]
[1739729086858,5.2682,189.82,189.8,0.03]
[1739729087583,12.9437054,189.84,189.8,0.03]
[1739729088460,7.6759054,189.83,189.8,0.03]
[1739729089667,27.6759054,189.84,189.8,0.03]
[1739729090055,20.0,189.84,189.8,0.03]
[1739729090266,7.6759054,189.81,189.8,0.03]
[1739729091273,12.9443054,189.81,189.8,0.03]
[1739729098592,12.9443054,189.81,189.71,6.4418]
[1739729098593,20.0,189.78,189.71,14.1177054]
[1739729098786,5.27,189.75,189.71,6.4418]
[1739729099099,7.6759054,189.77,189.71,14.1177054]
[1739729099397,5.2695,189.77,189.71,14.1177054]
[1739729100296,5.2695,189.77,189.73,7.6759054]
[1739729101192,5.2695,189.77,189.72,7.6759054]
[1739729101595,27.6759054,189.78,189.72,7.6759054]
[1739729101895,27.6759054,189.78,189.73,7.6759054]
[1739729101896,20.0,189.78,189.73,7.6759054]
[1739729102092,32.9451054,189.78,189.72,7.6759054]
[1739729102874,5.2698,189.76,189.71,6.4418]
[1739729103071,5.2698,189.76,189.7,7.7059054]
[1739729103881,12.9457054,189.76,189.7,7.7059054]
[1739729104991,5.2698,189.76,189.71,7.6759054]
[1739729105901,87.5695,189.77,189.71,7.6759054]
[1739729106082,87.5695,189.77,189.73,7.6759054]
[1739729109900,87.5695,189.77,189.72,0.03]
[1739729110073,87.5695,189.77,189.72,7.7059054]
[1739729110900,87.5695,189.77,189.73,7.6759054]
[1739729111800,87.5695,189.77,189.72,7.7059054]
[1739729113807,87.5695,189.77,189.72,0.03]
[1739729114810,87.5695,189.77,189.72,7.7059054]
[1739729116404,87.5695,189.77,189.72,0.03]
[1739729116603,95.2454054,189.77,189.72,0.03]
[1739729117205,87.5695,189.77,189.72,0.03]
[1739729117608,87.5695,189.77,189.72,7.7059054]
[1739729119099,82.3,189.77,189.72,7.7059054]
[1739729119305,82.3,189.77,189.72,12.9767054]
[1739729120111,82.3,189.77,189.74,7.6759054]
[1739729120283,0.063,189.77,189.76,7.6759054]
[1739729125398,0.063,189.77,189.76,12.9457054]
[1739729128293,0.063,189.77,189.76,26.35755393]
[1739729128621,0.063,189.77,189.76,29.14763007]
[1739729129202,0.063,189.78,189.77,23.40839257]
[1739729129397,0.0001,189.78,189.77,31.08429797]
[1739729130014,0.063,189.82,189.8,34.41184853]
[1739729130183,0.063,189.82,189.81,53.58134324]
[1739729130387,0.063,189.82,189.81,51.79137553]
[1739729130599,0.063,189.82,189.81,21.08775393]
[1739729131483,0.063,189.82,189.81,22.08775393]
[1739729131685,0.063,189.82,189.81,58.05977553]
[1739729133309,0.063,189.82,189.81,58.84978531]
[1739729133920,0.063,189.82,189.81,59.84972935]
[1739729135320,0.063,189.82,189.81,58.84978531]
[1739729135631,0.063,189.82,189.81,59.84972935]
[1739729136418,0.063,189.82,189.81,58.84978531]
[1739729137433,0.063,189.82,189.81,59.84972935]
[1739729137615,0.0001,189.82,189.81,59.84972935]
[1739729138127,0.063,189.87,189.84,21.0]
[1739729138335,0.063,189.87,189.86,21.08775393]
[1739729138498,0.063,189.87,189.86,21.87752556]
[1739729139538,0.063,189.87,189.86,27.14452556]
[1739729139717,0.063,189.87,189.86,28.14452556]
[1739729141336,0.063,189.95,189.87,15.41179257]
[1739729141504,0.063,189.95,189.94,7.6759054]
[1739729141825,0.063,189.95,189.93,7.6759054]
[1739729142509,0.063,189.95,189.91,7.6759054]
[1739729142834,0.063,189.95,189.9,7.6759054]
[1739729143205,7.7389054,189.95,189.89,7.6759054]
[1739729144018,0.063,189.95,189.89,7.6759054]
[1739729144414,5.3275,189.95,189.89,7.6759054]
[1739729144838,7.6759054,189.93,189.87,7.6759054]
[1739729145040,7.6759054,189.92,189.86,7.6759054]
[1739729145254,89.9759054,189.91,189.84,7.6759054]
[1739729146124,82.3,189.91,189.87,7.6759054]
[1739729146723,87.5656,189.91,189.87,7.6759054]
[1739729147024,82.3,189.91,189.87,7.6759054]
[1739729148036,82.3,189.91,189.88,7.6759054]
[1739729148418,82.3,189.91,189.89,7.6759054]
[1739729148845,87.5657,189.91,189.86,7.6759054]
[1739729149142,94.7416054,189.91,189.85,7.6759054]
[1739729149513,81.8,189.9,189.85,7.6759054]
[1739729150040,5.2662,189.89,189.84,7.6759054]
[1739729150244,12.9421054,189.89,189.82,7.6759054]
[1739729150834,12.9421054,189.89,189.83,7.6759054]
[1739729150835,5.2662,189.89,189.83,7.6759054]
[1739729151075,87.0659,189.9,189.86,7.6759054]
[1739729151336,81.8,189.89,189.86,7.6759054]
[1739729151912,81.8,189.89,189.87,7.6759054]
[1739729152533,81.8,189.89,189.86,7.6759054]
[1739729154720,87.0662,189.89,189.85,7.6759054]
[1739729157516,87.0662,189.89,189.84,7.6759054]
[1739729158928,87.0662,189.89,189.85,7.6759054]
[1739729159243,87.0662,189.89,189.85,7.7059054]
[1739729159420,81.8,189.89,189.85,7.7059054]
[1739729159623,81.8,189.89,189.86,7.6759054]
[1739729160151,81.8,189.89,189.87,7.6759054]
[1739729160551,81.8,189.89,189.86,7.6759054]
[1739729161065,81.8,189.89,189.88,7.6759054]
[1739729161232,0.063,189.91,189.88,7.6759054]
[1739729161437,0.063,189.91,189.9,15.3518108]
[1739729161632,0.063,189.91,189.9,38.379527]
[1739729162648,0.063,189.91,189.9,51.79137553]
[1739729163042,0.063,189.95,189.9,53.58093744]
[1739729163241,0.063,189.95,189.94,7.6759054]
[1739729164363,0.063,189.95,189.94,12.9407054]
[1739729164571,0.063,189.95,189.94,26.35255393]
[1739729164874,0.063,189.95,189.94,27.1419364]
[1739729165441,0.063,189.95,189.94,28.14188044]
[1739729165655,0.063,189.97,189.96,15.41179257]
[1739729165945,0.063,189.97,189.96,54.58058459]
[1739729166354,0.063,190.01,189.97,19.67574853]
[1739729166553,0.063,190.01,189.97,58.05527553]
[1739729166771,0.063,190.01,189.97,57.05527553]
[1739729166965,0.063,190.01,189.97,58.05527553]
[1739729167368,0.063,190.01,189.97,59.05521957]
[1739729169586,0.063,189.98,189.97,59.84452524]
[1739729171258,0.063,189.98,189.97,26.35165393]
[1739729171458,0.063,189.98,189.97,21.08775393]
[1739729172965,0.063,189.98,189.97,7.6759054]
[1739729174456,0.063,189.98,189.96,7.6759054]
[1739729175867,0.063,189.98,189.97,7.6759054]
[1739729178962,0.063,189.98,189.95,7.6759054]
[1739729181275,0.063,189.98,189.93,83.42]
[1739729181579,0.063,189.98,189.93,91.0959054]
[1739729182296,0.063,189.98,189.94,7.6759054]
[1739729182465,0.063,189.98,189.95,7.6759054]
[1739729184384,0.063,189.98,189.94,7.6759054]
[1739729184564,81.8,189.97,189.94,7.6759054]
[1739729184767,81.8,189.97,189.95,7.7059054]
[1739729185787,81.8,189.97,189.96,7.6759054]
[1739729185986,81.8,189.97,189.95,7.7059054]
[1739729187380,81.8,189.97,189.96,7.6759054]
[1739729187578,0.063,189.98,189.96,7.6759054]
[1739729187786,0.063,189.98,189.97,7.6759054]
[1739729189378,0.063,189.98,189.96,7.6759054]
[1739729189986,0.063,189.98,189.95,0.03]
[1739729191188,0.063,189.98,189.95,7.7059054]
[1739729191487,0.063,189.98,189.95,0.03]
[1739729193475,81.863,189.98,189.95,0.03]
[1739729193984,81.863,189.98,189.96,7.6759054]
[1739729195387,81.863,189.98,189.95,7.7059054]
[1739729197793,81.863,189.98,189.96,7.6759054]
[1739729198889,81.863,189.98,189.97,7.6759054]
[1739729199400,0.063,189.98,189.97,7.6759054]
[1739729199897,0.063,189.98,189.96,7.6759054]
[1739729200096,0.063,189.98,189.95,7.7059054]
[1739729202703,0.063,189.98,189.95,12.9704054]
[1739729203906,0.063,189.98,189.95,7.7059054]
[1739729204306,0.063,189.98,189.95,0.03]
[1739729205388,81.863,189.98,189.95,0.03]
[1739729206407,87.1267,189.98,189.95,0.03]
[1739729206606,94.8026054,189.98,189.95,0.03]
[1739729206789,7.6759054,189.96,189.95,0.03]
[1739729207906,87.1267,189.98,189.95,0.03]
[1739729207907,7.6759054,189.97,189.95,0.03]
[1739729208099,94.8026054,189.98,189.95,0.03]
[1739729208802,87.1267,189.98,189.95,0.03]
[1739729209685,81.863,189.98,189.95,0.03]
[1739729210995,87.1267,189.98,189.95,0.03]
[1739729212491,94.8026054,189.98,189.95,0.03]
[1739729214913,7.6759054,189.97,189.95,0.03]
[1739729215909,7.6759054,189.96,189.95,0.03]
[1739729216313,9.2186054,189.96,189.95,0.03]
[1739729217016,14.4828054,189.96,189.95,0.03]
[1739729218113,27.89465393,189.96,189.95,0.03]
[1739729218513,14.4828054,189.96,189.95,0.03]
[1739729222722,6.8069,189.96,189.95,0.03]
[1739729222929,14.4828054,189.96,189.95,0.03]
[1739729223629,14.4828054,189.96,189.9,0.03]
[1739729223630,20.0,189.93,189.9,0.03]
[1739729223844,7.6759054,189.91,189.9,0.03]
[1739729224409,26.35335393,189.91,189.85,0.03]
[1739729224716,7.6759054,189.87,189.85,0.03]
[1739729225522,1.5825,189.9,189.85,0.03]
[1739729225523,7.6759054,189.86,189.85,0.03]
[1739729227004,7.6759054,189.87,189.85,0.03]
[1739729227202,7.6759054,189.88,189.85,0.03]
[1739729227418,12.9421054,189.89,189.85,0.03]
[1739729227814,29.2584054,189.9,189.85,0.03]
[1739729228012,82.3,189.86,189.85,7.7059054]
[1739729229306,82.3,189.86,189.85,0.03]
[1739729238424,7.6759054,189.91,189.85,7.7059054]
[1739729238425,82.3,189.89,189.85,7.7059054]
[1739729239157,87.5662,189.89,189.85,0.03]
[1739729239545,95.2421054,189.89,189.85,0.03]
[1739729241032,7.6759054,189.87,189.85,0.03]
[1739729241429,5.2667,189.87,189.85,0.03]
[1739729241637,89.9759054,189.86,189.85,0.03]
[1739729241828,7.6759054,189.86,189.85,0.03]
[1739729243643,12.9429054,189.86,189.85,0.03]
[1739729244740,26.35475393,189.86,189.85,0.03]
[1739729246173,12.9429054,189.86,189.85,0.03]
[1739729247754,20.0,189.83,189.78,0.03]
[1739729247964,7.6759054,189.81,189.78,0.03]
[1739729248336,82.3,189.82,189.78,0.03]
[1739729248337,7.6759054,189.8,189.78,0.03]
[1739729249761,5.2689,189.79,189.78,0.03]
[1739729250461,12.9448054,189.79,189.78,0.03]
[1739729252254,5.2689,189.79,189.78,0.03]
[1739729253368,5.2687,189.81,189.78,0.03]
[1739729253552,5.2681,189.82,189.78,0.03]
[1739729255162,82.3,189.81,189.78,0.03]
[1739729258457,87.5686,189.81,189.78,0.03]
[1739729258657,95.2445054,189.81,189.78,0.03]
[1739729258954,82.3,189.8,189.78,0.03]
[1739729259850,87.5689,189.8,189.78,0.03]
[1739729261171,82.3,189.8,189.78,0.03]
[1739729261969,87.5687,189.8,189.78,0.03]
[1739729264775,82.3,189.79,189.78,0.03]
[1739729266058,87.5689,189.79,189.78,0.03]
[1739729266257,5.2689,189.79,189.78,0.03]
[1739729270379,7.6759054,189.81,189.78,0.03]
[1739729273488,5.2687,189.8,189.78,0.03]
[1739729275267,5.2681,189.82,189.78,0.03]
[1739729275990,12.9440054,189.82,189.78,0.03]
[1739729278397,5.2681,189.82,189.78,0.03]
[1739729280602,12.9440054,189.82,189.78,0.03]
[1739729280783,7.6759054,189.81,189.78,0.03]
[1739729281110,12.9440054,189.82,189.78,0.03]
[1739729281398,5.2681,189.82,189.78,0.03]
[1739729282570,82.3,189.81,189.78,0.03]
[1739729283305,87.5685,189.81,189.78,0.03]
[1739729284701,82.3,189.81,189.78,7.7059054]
[1739729285274,87.5684,189.81,189.78,0.03]
[1739729288602,82.3,189.8,189.78,0.03]
[1739729296410,87.5687,189.8,189.78,0.03]
[1739729301242,82.3,189.8,189.78,0.03]
[1739729304329,87.5687,189.8,189.78,0.03]
[1739729305733,82.3,189.8,189.78,0.03]
[1739729306022,87.5687,189.8,189.78,0.03]
[1739729314513,95.2446054,189.8,189.78,0.03]
[1739729314819,82.3,189.79,189.78,0.03]
[1739729315929,87.5689,189.79,189.78,0.03]
[1739729318214,5.2689,189.79,189.78,0.03]
[1739729319625,5.2687,189.8,189.78,0.03]
[1739729322035,12.9446054,189.8,189.78,0.03]
[1739729322340,5.2687,189.8,189.78,0.03]
[1739729322721,7.6759054,189.83,189.78,0.03]
[1739729323032,87.5681,189.82,189.78,0.03]
[1739729323230,95.2440054,189.82,189.78,0.03]
[1739729323418,87.5681,189.82,189.78,0.03]
[1739729324743,82.3,189.81,189.78,0.03]
[1739729326939,87.5684,189.81,189.78,0.03]
[1739729329034,95.2443054,189.81,189.78,0.03]
[1739729330252,5.2689,189.79,189.78,0.03]
[1739729331752,5.2684,189.81,189.78,0.03]
[1739729333855,5.2681,189.82,189.78,0.03]
[1739729335153,5.2678,189.83,189.78,0.03]
[1739729335357,82.3,189.82,189.78,0.03]
[1739729336059,89.9759054,189.81,189.78,0.03]
[1739729336268,7.6759054,189.79,189.78,0.03]
[1739729337242,12.9448054,189.79,189.78,0.03]
[1739729342740,6.9448054,189.79,189.78,0.03]
[1739729347671,7.0078054,189.79,189.78,0.03]
[1739729350467,20.41965393,189.79,189.78,0.03]
[1739729355173,20.41965393,189.79,189.78,0.0001]
[1739729382707,2.0,189.77,189.76,0.0001]
[1739729382867,13.41184853,189.74,189.72,0.03]
[1739729383076,7.6759054,189.73,189.72,0.03]
[1739729383369,21.08775393,189.73,189.72,0.03]
[1739729383569,13.41184853,189.72,189.7,0.03]
[1739729383865,33.41184853,189.68,189.66,0.03]
[1739729384069,41.08775393,189.68,189.66,0.03]
[1739729386100,46.35975393,189.68,189.66,0.03]
[1739729387695,32.9479054,189.68,189.66,0.03]
[1739729390707,12.9476054,189.69,189.66,0.03]
[1739729391004,5.2717,189.69,189.66,0.03]
[1739729391215,5.2715,189.7,189.66,0.03]
[1739729391392,7.6759054,189.72,189.66,7.7059054]